Cogmind - Beta 15 @@@ ROGUE MODE // 2025.05.26 @ 00:00:20 Player: Skysub Result: Destroyed by MY-35P(R) with Subdweller Machine Gun Performance ------------- Evolutions (0) 0 Regions Visited (2) 400 Robots Destroyed (24) 120 Value Destroyed (646) 646 Prototype IDs (2) 40 Alien Tech Used (0) 0 Bonus (-43) -43 TOTAL SCORE: 1163 Bonus ------- Friendly Fire -43 Cogmind --------- Core Integrity 0/250 Matter 274/300 Energy 91/100 System Corruption 0% Temperature Cool (0) Movement Rolling (100) Ox1 Location -10/Subcaves Parts ------- > --- POWER (1) -------- (None) > --- PROPULSION (2) --- Wheel Armored Wheel > --- UTILITY (2) ------ Large Storage Unit Makeshift Light Armor Plating > --- WEAPON (2) ------- Small Laser > --- INVENTORY (15) --- Subdweller Power Source Subdweller Power Source Light Nuclear Core Subdweller Monowheel Small Storage Unit Machine Analyzer Signal Interpreter Small Laser Light Assault Rifle Grenade Launcher Mining Laser Peak State ------------ > --- POWER ------------ (None) > --- PROPULSION ------- Wheel > --- UTILITY ---------- Large Storage Unit Makeshift Light Armor Plating > --- WEAPON ----------- Small Laser Grenade Launcher > --- INVENTORY -------- Subdweller Power Source Subdweller Power Source Light Nuclear Core Armored Wheel Subdweller Monowheel Small Storage Unit Machine Analyzer Signal Interpreter Small Laser Light Assault Rifle Grenade Launcher Mining Laser [Rating: 10] Favorites ----------- Power Light Ion Engine Engine Light Ion Engine Propulsion Light Treads Treads Light Treads Wheel Wheel Utility Structural Scanner Device Structural Scanner Storage Large Storage Unit Protection Makeshift Light Armor Plating Weapon Small Laser Energy Gun Small Laser Launcher Grenade Launcher Special Weapon Mining Laser Build | -11 -10 -10 ------- Run | Yrd Mat Sub Slots Evolved . | . . . Power . | . . . Propulsion . | . . . Utility . | . . . Weapon . | . . . Parts Attached 16 | 6 5 5 Power 2 | 1 1 . Engine 2 | 1 1 . Core . | . . . Reactor . | . . . Propulsion 5 | 2 . 3 Treads 2 | 2 . . Leg . | . . . Wheel 3 | . . 3 Hover . | . . . Flight . | . . . Utility 4 | 1 2 1 Device 1 | . 1 . Storage 2 | 1 1 . Processor . | . . . Hackware . | . . . Protection 1 | . . 1 Artifact . | . . . Weapon 5 | 2 2 1 Energy Gun 3 | 2 1 . Energy Cannon . | . . . Ballistic Gun . | . . . Ballistic Cannon . | . . . Launcher 1 | . . 1 Special Weapon 1 | . 1 . Impact Weapon . | . . . Slashing Weapon . | . . . Piercing Weapon . | . . . Special Melee Weapon . | . . . Unidentified Prototypes . | . . . Parts Lost 8 | . 2 6 Power 2 | . 1 1 Propulsion 3 | . . 3 Utility 1 | . . 1 Weapon 2 | . 1 1 Highest Loss Streak 5 | . 1 5 To Critical Strikes . | . . . Average Backups 7 | 2 6 10 Power 1 | . 1 2 Propulsion 2 | 1 2 3 Utility 1 | . 1 2 Weapon 2 | . 1 3 Tool/Special . | . . . Unused Backups 7 | . . 7 Power 3 | . . 3 Propulsion 1 | . . 1 Utility 1 | . . 1 Weapon 2 | . . 2 Tool/Special . | . . . Average Slot Usage (%) 95 | . 94 96 Engine 11 | . 10 12 Treads 25 | . 28 21 Wheel 1 | . . 5 Device 12 | . 12 13 Storage 14 | . 14 14 Energy Gun 20 | . 27 6 Launcher 4 | . . 13 Special Weapon 3 | . . 8 Peak Build Rating 10 | 6 8 10 Average Rating 7 | 4 7 8 On Entrance 4 | . 6 8 Naked Turns . | . . . Heaviest Build 28 | 10 26 28 Greatest Support 40 | 40 40 40 Greatest Overweight (x) 2 | . . 2 Average Overweight (x) . | . . . Largest Inventory Capacity 15 | 8 15 15 Average Capacity 13 | 7 12 15 Most Carried 12 | 4 9 12 Average Carried 7 | 2 6 10 Final Capacity 15 | 8 15 15 Final Carried 11 | 3 9 11 Class Distribution -------------------- 100% | Mutant Dominant Class ---------------- Mutant | -10/Materials Mutant | -10/Subcaves Resources | -11 -10 -10 ----------- Run | Yrd Mat Sub Matter Collected 405 | 44 242 119 Remotely . | . . . Salvage Created 703 | . 567 136 Parts 55 | . 42 13 Haulers Intercepted . | . . . Recyclers Shooed . | . . . Parts Field Recycled . | . . . Retrieved Matter . | . . . Parts Self-Destructed 8 | . . 8 Prevented . | . . . Kills | -11 -10 -10 ------- Run | Yrd Mat Sub Combat Hostiles Destroyed 21 | . 13 8 Guns 13 | . 13 . AOE 8 | . . 8 Classes Destroyed 6 | . 4 2 Builder 2 | . 2 . Operator 1 | . 1 . Swarmer 6 | . 2 4 Grunt 11 | . 11 . Subdweller 4 | . . 4 Scientist 1 | . . 1 Best Kill Streak 6 | . 6 3 Combat Bots Only 5 | . 5 3 Max Kills in Single Turn 3 | . 1 3 Gunslinging . | . . . Exploded 3 | . . 3 Melee . | . . . Uniques/NPCs Destroyed . | . . . Combat | -11 -10 -10 -------- Run | Yrd Mat Sub Hostile Shots Fired 99 | . 65 34 Missed 30 | . 15 15 Hits 69 | . 50 19 Projectile 69 | . 50 19 AOE 4 | . . 4 Critical Strikes 1 | . . 1 Damage Taken 1056 | . 580 476 Core 269 | . 148 121 Absorbed by Shields . | . . . Core Remaining (%) 100 | 100 . . Volleys Fired 71 | . 54 17 Largest 2 | . 2 2 Hottest 100 | . 100 100 Shots Fired 121 | . 100 21 Gun 106 | . 99 7 Cannon . | . . . Launcher 10 | . . 10 Special 5 | . 1 4 Kinetic . | . . . Thermal 111 | . 100 11 Explosive 10 | . . 10 Electromagnetic . | . . . Robot Hit Streak 9 | . 9 8 Robot Miss Streak 3 | . 3 3 Penetration Max . | . . . Secondary Targets 1 | . 1 . Max Gunslinging Chain 1 | . 1 . Shots Hit Robots 77 | . 66 11 Core Hits 44 | . 30 14 Critical Kills . | . . . Critical Parts Destroyed . | . . . Critical Strikes . | . . . Melee Attacks . | . . . Impact . | . . . Slashing . | . . . Piercing . | . . . Sneak Attacks . | . . . Combat Hostiles . | . . . Follow-up Attacks . | . . . Damage Inflicted 1384 | 1 743 640 Guns 775 | . 743 32 Cannons . | . . . Explosions 608 | . . 608 Melee . | . . . Ramming 1 | 1 . . Kinetic . | . . . Thermal 775 | . 743 32 Explosive 608 | . . 608 Electromagnetic . | . . . Impact . | . . . Slashing . | . . . Piercing . | . . . Highest Corruption . | . . . Average Corruption . | . . . Corruption Purged . | . . . Corruption Blocked . | . . . Overload Shots . | . . . Overflow Damage 36 | . . 36 Projectiles . | . . . Explosions 36 | . . 36 Melee . | . . . Knockbacks . | . . . Impact . | . . . Kinetic . | . . . Secondary . | . . . Self-Inflicted Damage 30 | . . 30 Shots 1 | . . 1 Rammed 2 | 1 1 . Targets Rammed 2 | 1 1 . Kicked . | . . . Crushed . | . . . Highest Temperature 228 | . 228 . Average Temperature 80 | . 80 . Received Heat Transfer 327 | . 312 15 Siege Activations . | . . . Martial Activations . | . . . Shielding Activations . | . . . Robots Disrupted . | . . . Combat Hostiles . | . . . Robots Corrupted . | . . . Combat Hostiles . | . . . Parts Fried . | . . . Impact Corruptions . | . . . Robots Melted . | . . . Combat Hostiles . | . . . Parts Melted 1 | . 1 . Heat Transferred 1750 | . 1675 75 Parts Sabotaged . | . . . Parts Stolen . | . . . Parts Stripped . | . . . Power Chain Reactions . | . . . Alert | -11 -10 -10 ------- Run | Yrd Mat Sub Maximum Alert Level 1 | . 1 . Low Security (%) 85 | 100 83 . Level 1 14 | . 16 . Level 2 . | . . . Level 3 . | . . . Level 4 . | . . . Level 5 . | . . . High Security . | . . . Max Security . | . . . Peak Influence 234 | . 234 . Initial . | . . . Average 108 | . 119 . Influence Increases 576 | . 426 150 Destroy 0b10 Robot/C 340 | . 260 80 Destroy 0b10 Robot/NC 15 | . 15 . Destroy Leader 80 | . 70 10 Successful Hack 21 | . 21 . Select Force Hacks 30 | . 30 . Lose Combat Pursuer 90 | . 30 60 Influence Decreases 570 | . 372 198 Entered New Map 26 | . . 26 Time Decay 464 | . 352 112 Lost Part 80 | . 20 60 Squads Dispatched 4 | . 4 . Investigation 2 | . 2 . Extermination . | . . . Reinforcement 2 | . 2 . Assault . | . . . Garrison . | . . . Intercept . | . . . Searches Triggered . | . . . Construction Impeded . | . . . Haulers Reinforced . | . . . Active Scanning Responses . | . . . Cargo Convoy Interrupts . | . . . Stealth | -11 -10 -10 --------- Run | Yrd Mat Sub Distress Signals 1 | . 1 . Communications Jammed . | . . . Distress Signals . | . . . Times Spotted 35 | . 21 14 Peak Tracking Total 6 | . 6 6 Tactical Retreats 3 | . 2 1 Traps | -11 -10 -10 ------- Run | Yrd Mat Sub Traps Triggered 1 | . 1 . Indirectly . | . . . Trap Hack Attempts . | . . . Triggered . | . . . Disarmed . | . . . Reprogrammed . | . . . Reused . | . . . Traps Extracted . | . . . Installed . | . . . Triggered . | . . . Machines | -11 -10 -10 ---------- Run | Yrd Mat Sub Machines Disabled . | . . . Max in Single Turn . | . . . Machines Repaired . | . . . Machines Dismantled . | . . . Machines Sabotaged . | . . . Overloaded Fab Kills . | . . . Hacking | -11 -10 -10 --------- Run | Yrd Mat Sub Machines Accessed 4 | . 4 . Terminals 3 | . 3 . Fabricators . | . . . Repair Stations . | . . . Recycling Units 1 | . 1 . Scanalyzers . | . . . Garrison Access . | . . . Total Hacks 17 | . 17 . Successful 12 | . 12 . Failed 5 | . 5 . Catastrophic . | . . . Database Lockouts . | . . . Manual 9 | . 9 . Terminals 14 | . 14 . Fabricators . | . . . Repair Stations . | . . . Recycling Units 3 | . 3 . Scanalyzers . | . . . Garrison Access . | . . . Terminal Hacks 7 | . 7 . Prototype ID Bank 1 | . 1 . Branch Access Points 1 | . 1 . Terminal Index 1 | . 1 . Alert Level 1 | . 1 . Locate Traps 1 | . 1 . Hauler Manifests 1 | . 1 . Zone Layout 1 | . 1 . Fabricator Hacks . | . . . Repair Station Hacks . | . . . Recycling Unit Hacks 1 | . 1 . Report Inventory 1 | . 1 . Scanalyzer . | . . . Garrison Access Hacks . | . . . Unauthorized Hacks 4 | . 4 . Terminals 3 | . 3 . Botnet 3 | . 3 . Fabricators . | . . . Repair Stations . | . . . Recycling Units 1 | . 1 . Tunnel 1 | . 1 . Scanalyzers . | . . . Garrison Access . | . . . Data Cores Recovered . | . . . Used . | . . . Hacking Detections 4 | . 4 . Full Trace Events . | . . . Feedback Events . | . . . Feedback Blocked . | . . . Robot Schematics Acquired . | . . . Robots Built . | . . . Authchips . | . . . Time . | . . . Total Robot Build Rating . | . . . Part Schematics Acquired . | . . . Parts Built . | . . . Authchips . | . . . Time . | . . . Total Part Build Rating . | . . . Parts Repaired . | . . . Time . | . . . Parts Recycled . | . . . Recycled Matter . | . . . Retrieved Matter . | . . . Retrieved Components . | . . . Parts Scanalyzed . | . . . Part Schematics Acquired . | . . . Parts Damaged . | . . . Bothacking | -11 -10 -10 ------------ Run | Yrd Mat Sub Used RIF Installer . | . . . Robots Hacked . | . . . Non-combat . | . . . Combat . | . . . Robot Hacks Applied . | . . . Relay Couplers Released . | . . . Fabnet Peak Effective % . | . . . Robots Rewired . | . . . Allies Hacked . | . . . Hacks Repelled . | . . . Allies | -11 -10 -10 -------- Run | Yrd Mat Sub Total Allies . | . . . Largest Group . | . . . Highest-Rated Group . | . . . Highest-Rated Ally . | . . . Total Orders . | . . . Ally Attacks . | . . . Total Damage . | . . . Kills . | . . . Allies Corrupted . | . . . Allies Melted . | . . . Intel | -11 -10 -10 ------- Run | Yrd Mat Sub Active Infowar (turns) 1141 | . 718 423 Structural 1141 | . 718 423 Robot Analysis Total . | . . . Derelict Logs Recovered . | . . . Drone Launches . | . . . Drone Recoveries . | . . . Exploration | -11 -10 -10 ------------- Run | Yrd Mat Sub Turns Passed 1362 | 85 821 456 Spaces Moved 658 | 54 319 285 Core 13 | 13 . . Treads 512 | 41 319 152 Legs . | . . . Wheels 133 | . . 133 Hover . | . . . Flight . | . . . Fastest Speed 50 | 50 160 100 Average Speed 147 | 133 160 136 Slowest Speed 160 | 160 160 160 Overloaded Moves . | . . . Propulsion Burnouts . | . . . Robots Hopped . | . . . Potential Cave-ins . | . . . Cave-ins Triggered . | . . . Exploration Rate (%) 27 | 5 57 20 Regions Visited 2 Branch Regions 1 Pre-discovered Areas 1 | . 1 . Known Exits Taken . | . . . Unknown Exits Taken 2 | 1 1 . Scrap Searched 4 | . . 4 Spaces Dug . | . . . Terrain Destroyed 29 | . . 29 Melee . | . . . Projectile . | . . . AOE 29 | . . 29 Terrain Rammed . | . . . Walls Destroyed . | . . . Machines Disabled . | . . . Actions | -11 -10 -10 --------- Run | Yrd Mat Sub Total 910 | 64 525 321 Wait 149 | . 141 8 Move 656 | 53 318 285 Hop . | . . . Pick Up 15 | 4 6 5 Fast Attach 8 | 5 2 1 Attach 5 | 1 1 3 Detach . | . . . Swap 4 | . 2 2 Drop . | . . . Fire 71 | . 54 17 Melee . | . . . Ram . | . . . Kick . | . . . Crush 2 | 1 1 . Escape Stasis . | . . . Rewire . | . . . Trap . | . . . Miscellaneous . | . . . Route ------- -11/Scrapyard -10/Materials (discovered 4 exits: [*Mat x2] / *Min / [*Sub]) -10/Subcaves (discovered 1 exit: [*Mat]) History --------- Turn | Location | Event 14 | -11/Scrapyard | Discovered new exit (range 16) 86 | -11/Scrapyard | Entered Materials 168 | -10/Materials | Identified exit to Mines 305 | -10/Materials | Build established: Mutant 375 | -10/Materials | Discovered new exit (range 12) 684 | -10/Materials | Discovered new exit (range 5) 775 | -10/Materials | Discovered new exit (range 8) 840 | -10/Materials | Core integrity fell below 50% 907 | -10/Materials | Entered Subcaves 908 | -10/Subcaves | Approached by a straggling Scientist 1115 | -10/Subcaves | A swath of the cavern ceiling suddenly collapsed 1252 | -10/Subcaves | Discovered new exit (range 15) 1290 | -10/Subcaves | Ambushed by Subdwellers from Twisted Machinery 1319 | -10/Subcaves | Core integrity fell below 20% 1363 | -10/Subcaves | Destroyed by MY-35P(R) with Subdweller Machine Gun Last Messages --------------- Searching scrap... Found Battle Cannon. Found Mak. Light Armor Plating. Found 64 Matter. Searching scrap... Found Sub. Monowheel. Found 53 Matter. Structural Scanner destroyed. Acquired Mak. Light Armor Plating. Subatomizers dissect the Battle Cannon. EV-CGR(R) destroyed. Lgt. Ion Engine fries itself beyond repair. Subatomizers dissect the Battle Cannon. Flight Unit fries itself beyond repair. B4-RI5(R) destroyed. AZ-5WX(c) destroyed. Acquired Machine Analyzer. Acquired 9 matter. MY-35P(R): "SUBMAD!" Grenade Launcher destroyed. Map ----- +----------------------------------------------------+ | ###???##########??????????????#####??????????????? | | ###??????######??????????????????????????????????? | | #????????????????????????????????????????????????? | | ?????????????????????????????????????????????????? | | ?????????????????????????????????????????????????? | | ?????????????????????????????????????????????????? | | ?????????????????????????????????????????????????? | | ?????????????????????????????????????????????????? | | ?????????????????????????????????????????????????? | | ?????????????????????????????????????????????????? | | ?????????????????????????????????????????????????? | | ?????????????????????????????????????????????????? | | ?????????????????????????????????????????????????? | | ?????????????????????????????????????????????????? | | ??????#############??????????????????????????????? | | #?#################??????????????????????????????? | | ####### #### ## # ??????????????????????????????? | | #### ## ?????????????????? ##??????????? | | ### # ## ##????????????????? ##??????????? | | ## # #### #########??? ####?? ###?????????? | | ## ## R ;######## ###### ;##?????????? | | ### # ;;;; ###### ; ?????????? | | ### ] ] #### ;; ?????????? | | ## % [ ;; % ????????? | | # % % ????????? | | ## # % * ; @ ????????? | | # ## = ; #????????? | | ; ;# #????????? | | ## ##;;;# ; ###????????????? | | % ## ########### ! ; ####???????????? | | ### #####??### %&& ;;##########?????? | | ##### ##????## #########????? | | # ## ##????### ###????? | | ##????### ## < ##????? | | ##?????##### ## %##????? | | #### ###????????## ## ### ###????? | | #########????????## ##### ##########????? | | ###?#####?????????########### ########?????? | | #######???????????????########?# ##??????????? | | ######?????????????????????????? ??????????? | | ???????????????????????????????? ?????????? | | ??????????????????????????????# ###?????? | | ??????????????????????????????## ##?????? | | ??????????????????????????????##### ##????? | | ??????????????????????????????##### ## ##????? | | ??????????????????????????????????#### ##????? | | ??????????????????????????????????####? ####????? | | ???????????????????????????????????????""####????? | | ???????????????????????????????????????? ##??????? | | ?????????????????????????????????????????????????? | +----------------------------------------------------+ Best States ------------- Heat Dissipation 25 Energy Generation 10 Energy Capacity 125 Matter Stores 300 Matter Capacity 300 Sight Range 16 Terrain Scan Density 10 Armor Coverage 100 Evasion (%) 50 Recoil Reduction 2 Item Schematics ----------------- None Robot Schematics ------------------ None Fabricated ------------ Nothing Repaired ---------- Nothing Alien Tech Used ----------------- None Achievements -------------- None Challenges ------------ None Game ------ Seed TimingSalvagingBox Manual? 0 Play Time 00:11:36 Cumulative 99.5 hours Start 2025.05.25 @ 23:44:08 End 2025.05.26 @ 00:00:20 Sessions 1 Manual Loads 0 Difficulty Rogue Special Mode None Game No. 105 Rogue 105 Adventurer 0 Explorer 0 Win Type - Total 2 Types 1/0/0/1/0/0/0/0/0/0 Lore% 54 Gallery% 53 Achievement% 47 Wizard Run 0 Options --------- Layout 1 ASCII 0 Keyboard 1 Movement Arrows Keybinds 0 Fullscreen 1 Font 24/Smallcaps Map View 50x35 Zoom Use 0% Tactical HUD 0 Map Filters NONE Filters NONE Steam 1 RUN: e2ee9469-b204-4702-8873-3da85d3d6ba7